Cogmind - Beta 10 --- EXPLORER MODE // 2020.09.20 @ 13:08:10 Player: Frizop Result: Self-destructed Performance ------------- Evolutions (1) 500 Regions Visited (2) 400 Robots Destroyed (38) 190 Value Destroyed (883) 883 Prototype IDs (2) 40 Alien Tech Used (0) 0 Bonus (0) 0 TOTAL SCORE: 2013 Bonus ------- None Cogmind --------- Core Integrity 351/400 Matter 264/300 Energy 465/465 System Corruption 0% Temperature Cool (0) Movement Treading (160) Location -9/Materials Parts ------- > --- POWER (1) -------- Improved Ion Engine > --- PROPULSION (3) --- Light Treads Light Treads Light Treads > --- UTILITY (4) ------ Large Storage Unit Medium Battery Target Analyzer Core Shielding > --- WEAPON (2) ------- Particle Cannon Autogun > --- INVENTORY (10) --- Light Treads Flight Unit Flight Unit Flight Unit Heat Sink Structural Scanner Seismic Analyzer Targeting Computer Peak State ------------ > --- POWER ------------ Light Ion Engine > --- PROPULSION ------- Aluminum Leg Aluminum Leg Aluminum Leg > --- UTILITY ---------- Medium Storage Unit Melee Analysis Suite Target Analyzer Core Shielding > --- WEAPON ----------- Shock Rifle Shock Rifle > --- INVENTORY -------- Flight Unit Flight Unit Heat Sink Medium Battery Structural Scanner Seismic Analyzer Targeting Computer [Rating: 18] Favorites ----------- Power Light Ion Engine Engine Light Ion Engine Propulsion Light Treads Treads Light Treads Leg Aluminum Leg Wheel Wheel Flight Unit Flight Unit Utility Core Shielding Storage Medium Battery Processor Target Analyzer Protection Core Shielding Weapon Particle Cannon Energy Gun Shock Rifle Energy Cannon Particle Cannon Ballistic Gun Assault Rifle Build | -11 -10 -9 ------- Run | Scr Mat Mat Slots Evolved 3 | . 1 2 Power . | . . . Propulsion 1 | . . 1 Utility 2 | . 1 1 Weapon . | . . . Parts Attached 38 | 8 8 22 Power 9 | 2 2 5 Engine 9 | 2 2 5 Core . | . . . Reactor . | . . . Propulsion 13 | 2 4 7 Treads 4 | . . 4 Leg 6 | 2 2 2 Wheel 2 | . 2 . Hover . | . . . Flight 1 | . . 1 Utility 8 | 2 1 5 Device . | . . . Storage 3 | . 1 2 Processor 2 | . . 2 Hackware . | . . . Protection 3 | 2 . 1 Artifact . | . . . Weapon 8 | 2 1 5 Energy Gun 4 | 1 1 2 Energy Cannon 2 | . . 2 Ballistic Gun 2 | 1 . 1 Ballistic Cannon . | . . . Launcher . | . . . Special Weapon . | . . . Impact Weapon . | . . . Slashing Weapon . | . . . Piercing Weapon . | . . . Special Melee Weapon . | . . . Unidentified Prototypes . | . . . Parts Lost 5 | . 3 2 Power 1 | . . 1 Propulsion . | . . . Utility 1 | . 1 . Weapon 3 | . 2 1 Highest Loss Streak 1 | . 1 1 Average Slot Usage (%) 95 | . 88 97 Engine 10 | . 12 9 Treads 15 | . . 21 Leg 10 | . 19 6 Wheel 1 | . 5 . Storage 17 | . 11 19 Processor 7 | . . 10 Protection 13 | . 22 9 Energy Gun 6 | . 4 7 Energy Cannon 6 | . . 8 Ballistic Gun 5 | . 11 3 Naked Turns . | . . . Heaviest Build 36 | 11 19 36 Greatest Support 60 | 20 20 60 Greatest Overweight (x) 3 | 3 1 . Average Overweight (x) . | . . . Largest Inventory Capacity 10 | 4 8 10 Average Capacity 8 | 4 7 9 Most Carried 10 | 3 8 10 Average Carried 7 | 1 5 8 Final Capacity 10 | 4 8 10 Final Carried 8 | 3 8 8 Class Distribution -------------------- 100% | Hacker-Mutant Dominant Class ---------------- Hacker-Mutant | -10/Materials Hacker-Mutant | -9/Materials Resources | -11 -10 -9 ----------- Run | Scr Mat Mat Matter Collected 770 | 171 294 305 Remotely . | . . . Salvage Created 1312 | . 388 924 Parts 90 | . 20 70 Haulers Intercepted 2 | . 1 1 Recyclers Shooed 2 | . . 2 Parts Field Recycled . | . . . Retrieved Matter . | . . . Parts Self-Destructed . | . . . Prevented . | . . . Kills | -11 -10 -9 ------- Run | Scr Mat Mat Combat Hostiles Destroyed 29 | . 6 23 Guns 17 | . 6 11 Cannons 12 | . . 12 Classes Destroyed 9 | . 6 3 Worker 1 | . . 1 Builder 1 | . 1 . Tunneler 1 | . 1 . Hauler 2 | . 1 1 Watcher 4 | . 2 2 Swarmer 12 | . 2 10 Grunt 10 | . 4 6 Brawler 1 | . . 1 Sentry 6 | . . 6 Best Kill Streak 5 | . 4 5 Combat Bots Only 4 | . 3 4 Max Kills in Single Turn 1 | . 1 1 Gunslinging . | . . . Exploded . | . . . Melee . | . . . Uniques/NPCs Destroyed . | . . . Combat | -11 -10 -9 -------- Run | Scr Mat Mat Damage Taken 1172 | . 619 553 Core 164 | . 115 49 Absorbed by Shields . | . . . Core Remaining (%) 77 | 100 54 . Volleys Fired 113 | . 65 48 Largest 2 | . 2 2 Hottest 118 | . 60 118 Shots Fired 164 | . 71 93 Gun 123 | . 71 52 Cannon 41 | . . 41 Launcher . | . . . Special . | . . . Kinetic 76 | . 61 15 Thermal 41 | . . 41 Explosive . | . . . Electromagnetic 47 | . 10 37 Robot Hit Streak 44 | . 12 44 Robot Miss Streak 2 | . 2 1 Penetration Max . | . . . Secondary Targets 3 | . 1 2 Max Gunslinging Chain 1 | . 1 1 Shots Hit Robots 135 | . 56 79 Core Hits 50 | . 18 32 Critical Hits 4 | . 1 3 Critical Kills 1 | . . 1 Critical Parts Destroyed 3 | . 1 2 Melee Attacks . | . . . Impact . | . . . Slashing . | . . . Piercing . | . . . Sneak Attacks . | . . . Combat Hostiles . | . . . Follow-up Attacks . | . . . Damage Inflicted 2128 | . 700 1428 Guns 1413 | . 698 715 Cannons 700 | . . 700 Explosions . | . . . Melee . | . . . Ramming 15 | . 2 13 Kinetic 824 | . 625 199 Thermal 700 | . . 700 Explosive . | . . . Electromagnetic 589 | . 73 516 Impact . | . . . Slashing . | . . . Piercing . | . . . Highest Corruption . | . . . Average Corruption . | . . . Corruption Purged . | . . . Overload Shots . | . . . Overflow Damage 1 | . . 1 Projectiles 1 | . . 1 Explosions . | . . . Melee . | . . . Knockbacks 1 | . . 1 Impact 1 | . . 1 Kinetic . | . . . Secondary . | . . . Self-Inflicted Damage 1 | . 1 . Shots . | . . . Rammed 3 | . 1 2 Targets Rammed 3 | . 1 2 Kicked . | . . . Crushed . | . . . Highest Temperature 314 | . 81 314 Average Temperature 84 | . 21 98 Received Heat Transfer 696 | . 450 246 Effects 2 | . . 2 Interference 2 | . . 2 Siege Activations . | . . . Robots Corrupted . | . . . Combat Hostiles . | . . . Parts Fried 1 | . . 1 Impact Corruptions . | . . . Robots Melted . | . . . Combat Hostiles . | . . . Parts Melted 2 | . . 2 Heat Transferred 1258 | . . 1258 Parts Sabotaged . | . . . Parts Stolen . | . . . Parts Stripped . | . . . Power Chain Reactions . | . . . Missiles Intercepted . | . . . Alert | -11 -10 -9 ------- Run | Scr Mat Mat Peak Influence 288 | . 144 288 Initial 13 | . . 13 Average 96 | . 65 115 Maximum Alert Level 1 | . . 1 Low Security (%) 85 | 100 100 79 Level 1 14 | . . 20 Level 2 . | . . . Level 3 . | . . . Level 4 . | . . . Level 5 . | . . . High Security . | . . . Max Security . | . . . Squads Dispatched 4 | . . 4 Investigation 2 | . . 2 Extermination . | . . . Reinforcement 2 | . . 2 Assault . | . . . Garrison . | . . . Intercept . | . . . Construction Impeded . | . . . Haulers Reinforced . | . . . Stealth | -11 -10 -9 --------- Run | Scr Mat Mat Distress Signals 2 | . 1 1 Communications Jammed . | . . . Distress Signals . | . . . Times Spotted 44 | . 14 30 Peak Tracking Total 5 | . 5 3 Tactical Retreats 2 | . 1 1 Traps | -11 -10 -9 ------- Run | Scr Mat Mat Traps Triggered . | . . . Indirectly . | . . . Trap Hack Attempts . | . . . Triggered . | . . . Disarmed . | . . . Reprogrammed . | . . . Reused . | . . . Traps Extracted . | . . . Installed . | . . . Triggered . | . . . Machines | -11 -10 -9 ---------- Run | Scr Mat Mat Machines Disabled 1 | . . 1 Max in Single Turn 1 | . . 1 Machines Sabotaged . | . . . Garrisons Compromised . | . . . Overloaded Fab Kills . | . . . Fab Network Shutdowns . | . . . Hacking | -11 -10 -9 --------- Run | Scr Mat Mat Machines Accessed 13 | . 4 9 Terminals 11 | . 4 7 Fabricators . | . . . Repair Stations 1 | . . 1 Recycling Units . | . . . Scanalyzers 1 | . . 1 Garrison Access . | . . . Total Hacks 35 | . 9 26 Successful 31 | . 8 23 Failed 4 | . 1 3 Catastrophic . | . . . Database Lockouts . | . . . Manual 16 | . . 16 Terminals 29 | . 9 20 Fabricators . | . . . Repair Stations 4 | . . 4 Recycling Units . | . . . Scanalyzers 2 | . . 2 Garrison Access . | . . . Terminal Hacks 14 | . 8 6 Record 5 | . 3 2 Prototype ID Bank 1 | . . 1 Alert Level 1 | . 1 . Locate Traps 2 | . 2 . Dispatch Records 1 | . 1 . Transport Status 1 | . 1 . Reinforcement Status 1 | . . 1 Hauler Manifests 1 | . . 1 Zone Layout 1 | . . 1 Fabricator Hacks . | . . . Repair Station Hacks 4 | . . 4 Scan Component 2 | . . 2 Repair 2 | . . 2 Recycling Unit Hacks . | . . . Scanalyzer 2 | . . 2 Insert Component 1 | . . 1 Analyze 1 | . . 1 Garrison Access Hacks . | . . . Unauthorized Hacks 11 | . . 11 Terminals 11 | . . 11 Track 2 | . . 2 Assimilate 2 | . . 2 Botnet 6 | . . 6 Search 1 | . . 1 Fabricators . | . . . Repair Stations . | . . . Recycling Units . | . . . Scanalyzers . | . . . Garrison Access . | . . . Data Cores Recovered . | . . . Used . | . . . Hacking Detections 8 | . 2 6 Full Trace Events 3 | . 1 2 Feedback Events . | . . . Feedback Blocked . | . . . Robot Schematics Acquired . | . . . Robots Built . | . . . Matter . | . . . Time . | . . . Total Robot Build Rating . | . . . Part Schematics Acquired 1 | . . 1 Parts Built . | . . . Matter . | . . . Time . | . . . Total Part Build Rating . | . . . Parts Repaired 2 | . . 2 Time 58 | . . 58 Parts Recycled . | . . . Recycled Matter . | . . . Retrieved Matter . | . . . Retrieved Components . | . . . Parts Scanalyzed 1 | . . 1 Part Schematics Acquired 1 | . . 1 Parts Damaged 1 | . . 1 Bothacking | -11 -10 -9 ------------ Run | Scr Mat Mat Used RIF Installer . | . . . Robots Hacked . | . . . Non-combat . | . . . Combat . | . . . Robot Hacks Applied . | . . . Relay Couplers Released . | . . . Robots Rewired . | . . . Allies Hacked . | . . . Hacks Repelled . | . . . Allies | -11 -10 -9 -------- Run | Scr Mat Mat Total Allies . | . . . Largest Group . | . . . Highest-Rated Group . | . . . Highest-Rated Ally . | . . . Total Orders . | . . . Ally Attacks . | . . . Total Damage . | . . . Kills . | . . . Allies Corrupted . | . . . Allies Melted . | . . . Intel | -11 -10 -9 ------- Run | Scr Mat Mat Robot Analysis Total . | . . . Derelict Logs Recovered . | . . . Drone Launches . | . . . Drone Recoveries . | . . . Exploration | -11 -10 -9 ------------- Run | Scr Mat Mat Turns Passed 2106 | 129 513 1464 Spaces Moved 1191 | 95 324 772 Core 17 | 17 . . Treads 545 | . . 545 Legs 541 | 78 236 227 Wheels 88 | . 88 . Hover . | . . . Flight . | . . . Fastest Speed 50 | 50 80 120 Average Speed 135 | 119 109 148 Slowest Speed 200 | 200 120 160 Overloaded Moves . | . . . Propulsion Burnouts . | . . . Robots Hopped . | . . . Cave-ins Triggered . | . . . Exploration Rate (%) 38 | 5 47 63 Regions Visited 2 Branch Regions . Pre-discovered Areas . | . . . Known Exits Taken 2 | 1 1 . Unknown Exits Taken . | . . . Scrap Searched . | . . . Spaces Dug . | . . . Terrain Destroyed . | . . . Melee . | . . . Projectile . | . . . AOE . | . . . Terrain Rammed . | . . . Walls Destroyed . | . . . Machines Disabled . | . . . Actions | -11 -10 -9 --------- Run | Scr Mat Mat Total 1518 | 108 410 1000 Wait 137 | 1 2 134 Move 1189 | 94 323 772 Hop . | . . . Pick Up 18 | 4 8 6 Fast Attach 20 | 6 . 14 Attach 8 | 2 2 4 Detach 6 | 1 1 4 Swap 10 | . 6 4 Drop 14 | . 2 12 Fire 113 | . 65 48 Melee . | . . . Ram . | . . . Kick 1 | . 1 . Crush 2 | . . 2 Escape Stasis . | . . . Rewire . | . . . Trap . | . . . Miscellaneous . | . . . Route ------- -11/Scrapyard -10/Materials (discovered 2 exits: *Mat x2) -9/Materials (discovered 2 exits: *Mat x2) History --------- Turn | Location | Event 70 | -11/Scrapyard | Identified exit to Materials 70 | -11/Scrapyard | Discovered exit to Materials (range 15) 130 | -11/Scrapyard | Entered Materials 130 | -10/Materials | Evolved 1 slot: Utility x1 307 | -10/Materials | Build established: Hacker-Mutant 445 | -10/Materials | Identified exit to Materials 445 | -10/Materials | Discovered exit to Materials (range 16) 624 | -10/Materials | Discovered exit to Materials (range 13) 643 | -10/Materials | Entered another Materials area 643 | -9/Materials | Evolved 2 slots: Propulsion x1, Utility x1 1059 | -9/Materials | Identified exit to Materials 1059 | -9/Materials | Discovered exit to Materials (range 16) 1189 | -9/Materials | Discovered exit to Materials (range 9) 1969 | -9/Materials | Repaired Particle Cannon 1996 | -9/Materials | Repaired Core Shielding 2107 | -9/Materials | Self-destructed Last Messages --------------- Time: 32 >>Repair Repairing Particle Cannon... ETC: 32 Repair station completes Particle Cannon repairs. Acquired Particle Cannon. Connecting with Repair Station... >>Scan(Core Shielding) Scanning Core Shielding... Ready to Repair: Core Shielding Rating: 1 Time: 26 >>Repair Repairing Core Shielding... ETC: 26 Repair station completes Core Shielding repairs. Acquired Core Shielding. 02035_ U-05 Engineer builds a Door. 02052_ Connecting with Terminal... Map ----- +----------------------------------------------------+ | | | | | | | | | | | | | | | | | | | | | | | ???????????????????????????????????????????? | | ???????????????????????????????????????????? | | ???????????????????????????????????????????? | | ???????????????????????########????????????? | | ???????????????????????# #????????????? | | ???????????????????????# ########?????? | | ???????????????????????# " " [## #?????? | | ?????????????########### "R" ##""" #?????? | | ?????????????# # """ ##""" #?????? | | ?????????????## """ # ##""" #?????? | | ??????????????#=""" ###+##### #?????? | | ??????????????# """ #%[= !#?#""" #?????? | | ??????????????#[! #[*%* #?#""" #?????? | | ??????????????#! #*m####?#""" ####### | | ??????????????# [ # @#????# # "T" # | | ??????????????# "T" r/ #????# ! # # | | ??????????????# # #????# # # | | ????????????############ ##???# # """ # | | ????????????# # #######+### """ # | | ????????????# / # """ # | | ????????????# # T + # | | ????????????# # ######### # """ # | | ????????????# ######???????# # """ # | | ????????????# #????????????# # """ # | | #####???????# #????????????# # # | | #???????# #????????????# # [ # | | """#???????###########????????????# ####### | | """#?????????????##???????????????# #?????? | | """#?????####### ##??????????#####+#####?? | | #?????# #??????????# #?? | | %= ####### #??????????# #?? | | #+### ### #############+#### """"""" #?? | | "" # """"""" #?? | | T*/ ! + """"""" #?? | | =! %=%= # """"""" #?? | | #+###!%=%*##### ############## # """"""" #?? | | ###+###???# #????????????# # ?????? | | # #####+######???????# ########????? | | # """ ## #????##?# #???????????? | +----------------------------------------------------+ Best States ------------- Heat Dissipation 28 Energy Generation 12 Energy Capacity 465 Matter Stores 300 Matter Capacity 300 Sight Range 16 Terrain Scan Density 10 Armor Coverage 150 Resistance: KI 35 Resistance: TH 35 Resistance: EX 35 Resistance: EM 35 Resistance: I 35 Resistance: S 35 Resistance: P 35 Core Shielding 20 Evasion (%) 50 Melee Accuracy 5 Target Analysis 5 Recoil Reduction 3 Offensive Hacking 20 Item Schematics ----------------- Rnf. Ion Engine | -9/Materials | Scanalyzed Robot Schematics ------------------ None Fabricated ------------ Nothing Alien Tech Used ----------------- None Achievements -------------- None Challenges ------------ None Game ------ Seed InertialReinforcedInverter Manual? 0 Play Time 01:00:28 Cumulative 12.9 hours Start 2020.09.16 @ 20:04:11 End 2020.09.20 @ 13:08:10 Sessions 7 Manual Loads 0 Difficulty Explorer Special Mode None Game No. 10 Rogue 7 Adventurer 0 Explorer 3 Win Type - Total 0 Types 0/0/0/0/0/0/0/0/0 Lore% 3 Gallery% 17 Achievement% 16 Wizard Run 0 Options --------- ASCII 0 Keyboard 1 Movement Vi Keybinds 0 Fullscreen 1 Font 24/Smallcaps Map View 113x50 Tactical HUD 1 Map Filters NONE Filters NONE Steam 1 RUN: ff79906a-f9e2-42e1-857c-5f5b355cdcc8